bitfinex/quotes_SOLUSD_20241209
["timestamp","ask_amount","ask_price","bid_price","bid_amount"]
[1733766614055,20.0,224.3,224.2,19.4753136]
[1733766614852,20.0,224.28,224.2,5.0]
[1733766615102,25.0,224.28,224.2,5.0]
[1733766615276,4.9999,224.26,224.2,5.0]
[1733766615734,9.9999,224.26,224.2,5.0]
[1733766615936,20.0,224.23,224.2,5.0]
[1733766616260,20.0,224.21,224.2,5.0]
[1733766619175,20.0,224.27,224.2,5.0]
[1733766619341,5.0,224.29,224.2,5.0]
[1733766619744,4.9999,224.3,224.2,5.0]
[1733766619979,4.9999,224.32,224.2,5.0]
[1733766620175,4.9999,224.32,224.21,8.0673]
[1733766620873,4.9999,224.32,224.21,22.5426136]
[1733766621038,4.9999,224.32,224.22,27.4350136]
[1733766621345,20.0,224.3,224.22,27.4350136]
[1733766621545,20.0,224.3,224.22,12.9597]
[1733766621937,20.0,224.3,224.23,13.4]
[1733766622136,20.0,224.33,224.25,14.4753136]
[1733766622370,4.9999,224.36,224.25,19.4753136]
[1733766622542,4.9999,224.36,224.26,14.4753136]
[1733766622960,4.9999,224.36,224.27,0.12549]
[1733766623277,12.6859,224.42,224.27,0.12549]
[1733766623278,21.06688316,224.4,224.28,14.4753136]
[1733766623578,21.06688316,224.4,224.29,0.12549]
[1733766623867,4.9999,224.4,224.29,0.12549]
[1733766624238,4.9999,224.4,224.29,14.6008036]
[1733766624573,0.83551227,224.46,224.32,8.1159]
[1733766624574,9.9999,224.43,224.32,8.1159]
[1733766624781,4.9999,224.43,224.33,13.21889]
[1733766624941,9.9999,224.45,224.33,18.21889]
[1733766625271,9.9999,224.45,224.33,32.6942036]
[1733766625571,9.9999,224.45,224.33,18.21889]
[1733766625941,5.0,224.43,224.33,18.0934]
[1733766626732,20.0,224.42,224.33,18.0934]
[1733766626937,20.0,224.42,224.33,32.5687136]
[1733766628543,20.0,224.42,224.34,0.12549]
[1733766629379,20.0,224.42,224.34,5.12549]
[1733766631343,20.0,224.42,224.34,5.0]
[1733766631541,19.5,224.42,224.34,5.0]
[1733766631771,4.9999,224.41,224.34,5.0]
[1733766633173,9.9999,224.41,224.34,5.0]
[1733766633354,9.9999,224.37,224.34,5.0]
[1733766633559,4.9999,224.35,224.34,5.0]
[1733766633764,24.9999,224.35,224.34,5.0]
[1733766635857,24.9999,224.35,224.28,5.0]
[1733766635858,29.9999,224.35,224.28,5.0]
[1733766636562,24.9999,224.35,224.28,5.0]
[1733766636782,20.0,224.34,224.28,5.0]
[1733766637153,29.9999,224.35,224.28,5.0]
[1733766637669,0.83569594,224.42,224.26,7.5906]
[1733766637670,20.0,224.3,224.26,5.0]
[1733766638260,20.0,224.35,224.26,19.4753136]
[1733766639172,4.9999,224.36,224.26,19.4753136]
[1733766639391,4.9999,224.39,224.28,19.4753136]
[1733766639692,4.9999,224.38,224.29,7.9707]
[1733766639890,4.9999,224.4,224.29,12.9707]
[1733766640392,4.9999,224.4,224.3,14.4753136]
[1733766640594,4.9999,224.4,224.3,19.4753136]
[1733766641063,4.9999,224.42,224.31,14.4753136]
[1733766641388,4.9999,224.42,224.32,12.88759]
[1733766641556,9.9999,224.44,224.32,17.88759]
[1733766641960,4.9999,224.42,224.32,17.88759]
[1733766642400,4.9999,224.44,224.33,0.12549]
[1733766642694,20.0,224.43,224.34,0.12549]
[1733766642865,20.0,224.43,224.32,32.2374136]
[1733766643078,20.0,224.41,224.33,14.4753136]
[1733766643271,5.0,224.44,224.34,14.4753136]
[1733766643497,9.9999,224.44,224.34,14.4753136]
[1733766643794,3.74,224.47,224.39,7.6517]
[1733766644099,3.74,224.47,224.4,14.6008036]
[1733766644394,3.74,224.47,224.4,5.0]
[1733766644988,3.74,224.47,224.41,14.6008036]
[1733766645166,3.74,224.47,224.42,12.9933]
[1733766646299,23.74,224.47,224.42,12.9933]
[1733766646462,3.74,224.47,224.42,12.9933]
[1733766648392,3.74,224.47,224.43,14.4753136]
[1733766649088,3.74,224.47,224.44,14.6008036]
[1733766649288,8.0788,224.6,224.46,14.4753136]
[1733766649289,4.9999,224.58,224.46,14.4753136]
[1733766649493,4.9999,224.56,224.46,14.4753136]
[1733766650186,4.9999,224.56,224.45,14.4753136]
[1733766650386,5.0,224.55,224.44,2.7]
[1733766650588,20.0,224.52,224.44,2.7]
[1733766651167,24.9999,224.52,224.44,2.7]
[1733766651398,20.0,224.52,224.44,2.7]
[1733766651564,24.9999,224.52,224.44,2.7]
[1733766653373,20.0,224.52,224.44,2.7]
[1733766653592,24.9999,224.52,224.44,2.7]
[1733766654175,20.0,224.54,224.46,14.4753136]
[1733766654376,20.0,224.56,224.46,14.4753136]
[1733766654577,20.0,224.56,224.47,14.4753136]
[1733766654779,20.0,224.57,224.47,17.1753136]
[1733766656213,24.9999,224.58,224.48,14.4753136]
[1733766656984,20.0,224.57,224.5,14.4753136]
[1733766657694,4.9999,224.6,224.5,14.4753136]
[1733766658006,5.0,224.63,224.51,17.1753136]
[1733766658007,4.9999,224.62,224.51,17.1753136]
[1733766658213,4.9999,224.62,224.53,14.4753136]
[1733766659001,4.9999,224.64,224.53,17.1753136]
[1733766660192,20.0,224.62,224.53,17.1753136]
[1733766660402,20.0,224.62,224.55,14.4753136]
[1733766660577,20.0,224.62,224.54,14.4753136]
[1733766661181,24.9999,224.64,224.55,14.4753136]
[1733766661385,20.0,224.64,224.56,14.4753136]
[1733766661578,4.9999,224.68,224.56,14.4753136]
[1733766661986,5.0,224.69,224.56,14.4753136]
[1733766661987,4.9999,224.65,224.56,14.4753136]
[1733766662388,4.9999,224.65,224.57,14.4753136]
[1733766662617,4.9999,224.65,224.56,17.1753136]
[1733766663115,4.9999,224.68,224.56,17.1753136]
[1733766663304,4.9999,224.65,224.56,17.1753136]
[1733766663500,24.9999,224.65,224.56,2.7]
[1733766663706,20.0,224.63,224.56,2.7]
[1733766664327,24.9999,224.65,224.56,2.7]
[1733766665133,4.9999,224.65,224.56,17.1753136]
[1733766665328,20.0,224.67,224.57,14.4753136]
[1733766665491,5.5380929,224.7,224.59,14.4753136]
[1733766665698,0.5381929,224.7,224.6,14.4753136]
[1733766666202,0.5381929,224.7,224.62,29.5384136]
[1733766667030,0.5381929,224.7,224.63,2.7]
[1733766667688,20.0,224.69,224.63,2.7]
[1733766668206,0.5381929,224.7,224.63,17.1753136]
[1733766668414,0.5381929,224.7,224.64,14.4753136]
[1733766669093,0.5381929,224.7,224.64,17.1753136]
[1733766669625,0.5381929,224.7,224.64,2.7]
[1733766671328,20.0,224.68,224.64,2.7]
[1733766671543,20.0,224.66,224.64,2.7]
[1733766672209,24.9999,224.67,224.64,2.7]
[1733766672706,20.0,224.65,224.64,2.7]
[1733766672918,24.9999,224.65,224.64,2.7]
[1733766674039,9.9999,224.6,224.58,2.7]
[1733766674809,20.0,224.59,224.58,2.7]
[1733766682118,4.9999,224.62,224.58,2.7]
[1733766682318,20.0,224.61,224.58,2.7]
[1733766683948,20.0,224.63,224.58,2.7]
[1733766684119,20.0,224.65,224.58,2.7]
[1733766684456,4.9999,224.68,224.58,17.1753136]
[1733766684825,4.9999,224.68,224.58,2.7]
[1733766685020,10.5380929,224.7,224.58,17.1753136]
[1733766685317,10.5380929,224.7,224.58,30.5653136]
[1733766685523,4.9999,224.68,224.58,30.5653136]
[1733766686466,10.5380929,224.7,224.58,2.7]
[1733766686636,20.0,224.67,224.58,2.7]
[1733766687063,20.0,224.67,224.58,17.1753136]
[1733766687965,20.0,224.67,224.58,17.05033553]
[1733766688761,20.0,224.67,224.58,2.57502193]
[1733766688958,20.0,224.65,224.58,2.57502193]
[1733766689471,20.0,224.65,224.58,2.47502193]
[1733766690757,20.0,224.63,224.58,2.47502193]
[1733766691245,9.9999,224.66,224.58,2.47502193]
[1733766691246,20.0,224.65,224.58,2.47502193]
[1733766693673,25.0,224.63,224.58,2.47502193]
[1733766694058,24.33624565,224.63,224.58,2.47502193]
[1733766694747,4.9999,224.64,224.58,2.47502193]
[1733766695351,4.9999,224.66,224.58,2.47502193]
[1733766696158,20.0,224.66,224.58,2.47502193]
[1733766698286,4.9999,224.64,224.58,2.47502193]
[1733766698474,24.9999,224.64,224.58,2.47502193]
[1733766698850,20.0,224.64,224.58,2.47502193]
[1733766699385,4.9999,224.68,224.58,2.47502193]
[1733766699581,20.0,224.67,224.58,2.47502193]
[1733766700257,20.0,224.67,224.59,0.12549]
[1733766701452,24.9999,224.67,224.59,2.60051193]
[1733766701685,20.0,224.67,224.59,2.60051193]
[1733766701988,20.0,224.66,224.59,2.47502193]
[1733766702863,20.0,224.64,224.59,2.47502193]
[1733766704266,20.0,224.66,224.59,2.47502193]
[1733766704674,20.0,224.67,224.6,0.12549]
[1733766705859,20.0,224.66,224.59,2.47502193]
[1733766706159,5.0,224.66,224.59,2.47502193]
[1733766706955,4.9999,224.65,224.59,2.47502193]
[1733766707385,20.0,224.67,224.59,16.95033553]
[1733766707563,20.0,224.67,224.59,2.47502193]
[1733766707754,20.0,224.67,224.6,0.12549]
[1733766709997,20.0,224.69,224.63,0.12549]
[1733766710172,20.0,224.69,224.63,2.60051193]
[1733766710581,0.5381929,224.7,224.63,2.60051193]
[1733766710792,0.5381929,224.7,224.65,14.4753136]
[1733766711005,0.5381929,224.7,224.66,0.12549]
[1733766711462,0.5381929,224.7,224.64,0.25098]
[1733766711666,0.5381929,224.7,224.64,0.12549]
[1733766712101,0.5381929,224.7,224.64,0.25098]
[1733766712385,0.5381929,224.7,224.64,14.7262936]
[1733766712798,0.5381929,224.7,224.64,0.12549]
[1733766713304,0.5381929,224.7,224.65,14.4753136]
[1733766713471,0.5381929,224.7,224.65,0.12549]
[1733766714967,0.5381929,224.7,224.65,14.6008036]
[1733766715279,4.9999,224.79,224.72,1.43682903]
[1733766716903,20.0,224.77,224.72,1.43682903]
[1733766717579,24.9999,224.79,224.72,1.43682903]
[1733766717891,20.0,224.77,224.72,1.43682903]
[1733766718892,4.9999,224.76,224.72,1.43682903]
[1733766719200,4.9999,224.74,224.72,1.43682903]
[1733766719494,20.0,224.73,224.72,1.43682903]
[1733766722696,9.9999,224.69,224.65,1.43682903]
[1733766724590,20.0,224.68,224.65,1.43682903]
[1733766724999,5.0,224.73,224.65,1.43682903]
[1733766725000,4.9999,224.72,224.65,1.43682903]
[1733766725296,24.9999,224.72,224.65,1.43682903]
[1733766725672,20.0,224.7,224.65,1.43682903]
[1733766726806,4.9999,224.74,224.65,1.43682903]
[1733766727115,20.0,224.72,224.65,1.43682903]
[1733766727276,0.83424918,224.81,224.66,16.16312263]
[1733766727277,5.0,224.77,224.66,16.16312263]
[1733766727673,4.9999,224.75,224.66,16.16312263]
[1733766728186,4.9999,224.78,224.68,0.25098]
[1733766728495,4.9999,224.76,224.68,1.68780903]
[1733766728694,24.9999,224.76,224.68,1.68780903]
[1733766729701,9.9999,224.79,224.69,12.6643]
[1733766729873,9.9999,224.79,224.7,0.12549]
[1733766730817,20.0,224.76,224.7,0.12549]
[1733766731598,20.0,224.79,224.7,29.55312263]
[1733766732179,4.9999,224.78,224.7,29.55312263]
[1733766732377,4.9999,224.78,224.7,15.07780903]
[1733766733305,4.9999,224.78,224.7,1.68780903]
[1733766733668,20.0,224.77,224.7,1.56231903]
[1733766733869,4.9999,224.76,224.7,1.56231903]
[1733766734509,4.9999,224.76,224.7,1.43682903]
[1733766735601,20.0,224.77,224.7,1.43682903]
[1733766735824,4.9999,224.76,224.7,1.43682903]
[1733766736674,20.0,224.75,224.7,1.43682903]
[1733766742740,20.0,224.73,224.7,1.43682903]
[1733766742903,24.9999,224.73,224.7,1.43682903]
[1733766746011,9.9999,224.71,224.7,1.43682903]
[1733766746181,4.9999,224.66,224.63,1.43682903]
[1733766746381,9.9999,224.68,224.63,1.43682903]
[1733766746585,4.9999,224.66,224.63,1.43682903]
[1733766747386,9.9999,224.68,224.63,1.43682903]
[1733766747621,4.9999,224.68,224.63,1.43682903]
[1733766747919,5.0,224.7,224.63,1.43682903]
[1733766747920,20.0,224.69,224.63,1.43682903]
[1733766748492,4.9999,224.68,224.63,1.43682903]
[1733766749691,20.0,224.69,224.63,1.43682903]
[1733766749895,4.9999,224.68,224.63,1.43682903]
[1733766750093,20.0,224.69,224.63,1.43682903]
[1733766750889,25.0,224.67,224.63,1.43682903]
[1733766751090,4.9999,224.65,224.63,1.43682903]
[1733766751414,9.9999,224.67,224.63,1.43682903]
[1733766751622,4.9999,224.65,224.63,1.43682903]
[1733766751997,20.0,224.64,224.63,1.43682903]
[1733766754328,18.8964759,224.64,224.63,1.43682903]
[1733766756132,9.9999,224.67,224.63,1.43682903]
[1733766759705,5.0,224.65,224.63,1.43682903]
[1733766759917,9.9999,224.67,224.63,1.43682903]
[1733766760715,5.0,224.65,224.63,1.43682903]
[1733766761231,4.9999,224.67,224.63,1.43682903]
[1733766766209,5.0,224.66,224.63,1.43682903]
[1733766766427,4.9999,224.65,224.63,1.43682903]
[1733766768729,4.46801747,224.65,224.63,1.43682903]
[1733766768933,5.0,224.64,224.63,1.43682903]
[1733766780948,20.0,224.64,224.63,1.43682903]
[1733766781155,5.0,224.66,224.63,1.43682903]
[1733766781955,4.46801747,224.67,224.63,1.43682903]
[1733766782457,20.0,224.66,224.63,1.43682903]
[1733766782661,18.56317097,224.66,224.59,0.25098]
[1733766782952,23.03118844,224.66,224.59,0.25098]
[1733766783247,4.46801747,224.66,224.59,0.25098]
[1733766783940,5.0,224.66,224.59,0.12549]
[1733766784136,9.46801747,224.66,224.58,7.7574]
[1733766784453,4.46801747,224.65,224.58,7.7574]
[1733766784821,5.0,224.66,224.58,7.7574]
[1733766785024,4.46801747,224.65,224.58,7.7574]
[1733766785228,29.46801747,224.63,224.58,7.7574]
[1733766785527,29.46801747,224.63,224.58,8.5574]
[1733766785752,9.46801747,224.6,224.58,0.8]
[1733766788055,4.46801747,224.53,224.47,8.8507]
[1733766788523,5.0,224.52,224.47,8.8507]
[1733766790029,4.46801747,224.5,224.47,8.8507]
[1733766790534,9.46801747,224.5,224.47,0.8]
[1733766790847,5.0,224.48,224.47,0.8]
[1733766791060,9.46801747,224.48,224.47,0.8]
[1733766795947,25.0,224.45,224.44,0.43815106]
[1733766796134,29.46801747,224.45,224.44,0.43815106]
[1733766797840,5.0,224.39,224.38,0.93075036]
[1733766798050,9.46801747,224.39,224.38,0.93075036]
[1733766798839,9.46801747,224.39,224.38,0.8]
[1733766805556,24.46801747,224.39,224.38,0.8]
[1733766806372,29.46801747,224.39,224.38,0.8]
[1733766809562,9.46801747,224.41,224.38,0.8]
[1733766809983,4.46801747,224.39,224.38,0.8]
[1733766811082,9.46801747,224.39,224.38,0.8]
[1733766812868,9.46801747,224.41,224.38,0.8]
[1733766813577,5.0,224.39,224.38,0.8]
[1733766813754,9.46801747,224.39,224.38,0.8]
[1733766818368,9.46801747,224.41,224.38,0.8]
[1733766818708,5.0,224.39,224.38,0.8]
[1733766820294,9.46801747,224.41,224.38,0.8]
[1733766820473,9.46801747,224.43,224.38,0.8]
[1733766820669,9.46801747,224.41,224.38,0.8]
[1733766821497,9.46801747,224.39,224.38,0.8]
[1733766830703,9.46801747,224.39,224.27,8.2551]
[1733766830704,9.46801747,224.31,224.29,0.8]
[1733766830905,29.46801747,224.31,224.29,0.8]
[1733766831213,0.83597633,224.3,224.29,0.8]
[1733766831418,29.46801747,224.31,224.29,0.8]
[1733766832334,5.0,224.26,224.23,0.8]
[1733766832513,4.46801747,224.28,224.23,0.8]
[1733766832514,9.46801747,224.24,224.23,0.8]
[1733766833393,25.0,224.21,224.2,0.8]
[1733766833827,29.46801747,224.21,224.2,0.8]
[1733766838910,29.46801747,224.21,224.13,1.3381929]
[1733766838911,5.0,224.14,224.13,1.3381929]
[1733766839113,4.46801747,224.15,224.13,1.3381929]
[1733766840238,20.0,224.14,224.13,1.3381929]
[1733766841421,4.46801747,224.15,224.13,1.3381929]
[1733766841737,0.83656564,224.24,224.13,1.3381929]
[1733766841738,4.46801747,224.19,224.13,1.3381929]
[1733766842623,0.83636506,224.27,224.13,9.75745364]
[1733766842624,4.46801747,224.21,224.13,9.75745364]
[1733766842812,4.46801747,224.18,224.13,1.3381929]
[1733766845007,0.31333326,224.16,224.13,1.3381929]
[1733766847423,0.31333326,224.16,224.14,0.12549]
[1733766848715,24.46801747,224.22,224.18,0.18666674]
[1733766848716,4.46801747,224.22,224.18,0.18666674]
[1733766848914,4.46801747,224.24,224.18,0.18666674]
[1733766854512,24.46801747,224.22,224.18,0.18666674]
[1733766855619,4.46801747,224.22,224.18,0.18666674]
[1733766855953,24.46801747,224.22,224.18,0.18666674]
[1733766856529,4.46801747,224.22,224.18,0.18666674]
[1733766857242,4.46801747,224.24,224.18,0.18666674]
[1733766864350,0.83624203,224.23,224.18,0.18666674]
[1733766864569,4.46801747,224.2,224.18,0.18666674]
[1733766865739,0.83640626,224.19,224.13,0.72485964]
[1733766866071,4.46801747,224.15,224.13,0.72485964]
[1733766867375,24.46801747,224.19,224.13,0.72485964]
[1733766868854,4.46801747,224.21,224.13,0.72485964]
[1733766869586,4.46801747,224.21,224.13,9.14412038]
[1733766869747,6.1198,224.29,224.13,9.14412038]
[1733766869748,4.46801747,224.23,224.17,8.41926074]
[1733766869943,4.46801747,224.23,224.17,8.60592748]
[1733766870147,4.46801747,224.23,224.17,0.18666674]
[1733766871451,4.46801747,224.27,224.2,8.54475074]
[1733766872462,4.46801747,224.24,224.2,0.12549]
[1733766872753,4.46801747,224.27,224.2,0.12549]
[1733766873090,6.1198,224.34,224.19,6.153]
[1733766873091,4.46801747,224.24,224.19,6.153]
[1733766873953,20.0,224.26,224.19,6.153]
[1733766873954,24.46801747,224.26,224.19,14.57226074]
[1733766874166,4.46801747,224.26,224.19,14.57226074]
[1733766874371,24.46801747,224.26,224.19,14.57226074]
[1733766874853,4.46801747,224.26,224.19,14.57226074]
[1733766875054,24.46801747,224.26,224.19,14.57226074]
[1733766875366,4.46801747,224.3,224.22,0.12549]
[1733766875689,4.46801747,224.28,224.22,0.12549]
[1733766876460,4.46801747,224.28,224.22,8.41926074]
[1733766877087,4.46801747,224.28,224.22,0.12549]
[1733766877667,4.46801747,224.31,224.24,0.31215674]
[1733766877966,4.46801747,224.28,224.24,0.18666674]
[1733766879657,4.46801747,224.26,224.24,0.18666674]
[1733766883768,24.46801747,224.28,224.24,0.18666674]
[1733766884059,4.46801747,224.28,224.24,0.18666674]
[1733766896083,4.46801747,224.3,224.24,0.18666674]
[1733766896475,4.46801747,224.28,224.24,0.18666674]
[1733766900991,4.28135073,224.33,224.27,8.41926074]
[1733766901899,4.28135073,224.33,224.28,0.12549]
[1733766902200,4.28135073,224.33,224.29,8.41926074]
[1733766902386,4.28135073,224.33,224.28,8.54475074]
[1733766902584,4.28135073,224.33,224.28,0.12549]
[1733766903409,4.28135073,224.33,224.27,5.7464]
[1733766905885,4.28135073,224.33,224.27,6.1464]
[1733766906680,4.28135073,224.33,224.27,0.4]
[1733766906886,4.28135073,224.29,224.27,0.4]
[1733766909497,4.28135073,224.31,224.27,0.4]
[1733766909696,4.28135073,224.29,224.27,0.4]
[1733766910013,4.28135073,224.31,224.27,0.4]
[1733766911385,4.28135073,224.33,224.27,0.4]
[1733766911622,4.28135073,224.33,224.28,8.41926074]
[1733766911910,4.28135073,224.34,224.3,8.81926074]
[1733766912417,4.28135073,224.34,224.3,0.4]
[1733766912719,4.28135073,224.37,224.3,0.4]
[1733766913084,4.28135073,224.37,224.31,8.54475074]
[1733766913284,4.28135073,224.41,224.34,8.41926074]
[1733766913594,4.28135073,224.41,224.34,8.81926074]
[1733766913808,4.28135073,224.41,224.35,0.12549]
[1733766914120,4.28135073,224.39,224.35,0.12549]
[1733766914304,0.83550629,224.46,224.35,8.54475074]
[1733766914305,4.28135073,224.42,224.35,8.54475074]
[1733766915478,4.28135073,224.44,224.37,8.41926074]
[1733766915880,4.28135073,224.44,224.38,0.12549]
[1733766916610,4.28135073,224.44,224.38,8.41926074]
[1733766916999,20.0,224.46,224.35,0.4]
[1733766917000,4.28135073,224.42,224.36,8.41926074]
[1733766917188,4.28135073,224.42,224.35,8.81926074]
[1733766917382,4.28135073,224.42,224.36,0.12549]
[1733766917990,4.28135073,224.42,224.35,0.4]
[1733766918185,4.28135073,224.4,224.35,0.4]
[1733766923284,4.28135073,224.37,224.35,0.4]
[1733766923796,5.1171197,224.37,224.35,0.4]
[1733766926017,4.28135073,224.31,224.3,0.4]
[1733766926215,24.28135073,224.31,224.3,0.4]
[1733766928820,4.28135073,224.25,224.24,0.4]
[1733766929126,24.28135073,224.25,224.24,0.4]
[1733766929320,24.28135073,224.25,224.24,0.0001]
[1733766933801,27.08694908,224.25,224.24,0.0001]
[1733766934128,27.21243908,224.25,224.24,0.0001]
[1733766937318,20.0,224.23,224.13,0.5381929]
[1733766937630,4.28135073,224.16,224.13,0.5381929]
[1733766937806,24.28135073,224.19,224.13,0.5381929]
[1733766938008,24.28135073,224.19,224.14,8.41926074]
[1733766938202,4.28135073,224.19,224.14,8.41926074]
[1733766939509,4.28135073,224.19,224.13,0.5381929]
[1733766940027,4.28135073,224.17,224.13,0.5381929]
[1733766940805,4.28135073,224.2,224.13,0.5381929]
[1733766941507,4.28135073,224.22,224.16,8.41926074]
[1733766942532,4.28135073,224.24,224.17,7.91926074]
[1733766942949,4.28135073,224.24,224.18,10.36426074]
[1733766943511,4.28135073,224.24,224.18,1.945]
[1733766943707,24.28135073,224.24,224.18,1.945]
[1733766943905,4.28135073,224.22,224.18,1.945]
[1733766944332,24.28135073,224.24,224.18,1.945]
[1733766944525,4.28135073,224.22,224.18,1.945]
[1733766945645,4.28135073,224.22,224.16,9.0942]
[1733766946913,4.28135073,224.22,224.13,10.95055364]
[1733766946914,0.83629453,224.21,224.13,10.95055364]
[1733766947114,20.0,224.24,224.13,10.95055364]
[1733766947115,4.28135073,224.19,224.13,10.95055364]
[1733766950646,4.28135073,224.19,224.13,2.5312929]
[1733766950946,4.28135073,224.14,224.13,0.5381929]
[1733766953518,4.28135073,224.14,224.13,0.0381929]
[1733766960635,24.28135073,224.14,224.13,0.0381929]
[1733766961328,4.28135073,224.14,224.13,0.0381929]
[1733766962944,4.28135073,224.16,224.13,0.0381929]
[1733766963142,0.83654537,224.17,224.13,0.0381929]
[1733766963143,4.28135073,224.14,224.13,0.0381929]
[1733766964639,4.28135073,224.16,224.13,0.0381929]
[1733766964821,4.28135073,224.14,224.13,0.0381929]
[1733766965251,24.28135073,224.14,224.13,0.0381929]
[1733766972430,4.28135073,224.05,224.0,6.94956113]
[1733766972667,4.28135073,224.05,223.98,13.89912227]
[1733766972668,4.28135073,224.05,223.98,6.94956113]
[1733766974236,0.83697885,224.04,223.98,6.94956113]
[1733766974431,0.83697885,224.04,223.97,6.94956113]
[1733766974635,0.83697885,224.04,223.98,6.94956113]
[1733766974636,4.28135073,224.01,223.98,6.94956113]
[1733766974973,24.28135073,224.03,223.98,6.94956113]
[1733766975491,4.28135073,224.03,223.98,6.94956113]
[1733766978151,6.674,224.13,223.98,6.94956113]
[1733766978152,4.28135073,224.01,223.98,6.94956113]
[1733766979567,4.28135073,224.01,223.96,15.68392227]
[1733766979568,4.28135073,224.01,223.96,8.73436113]
[1733766980083,4.28135073,224.0,223.96,8.73436113]
[1733766981549,4.28135073,224.0,223.96,1.7848]
[1733766982782,4.28135073,224.03,223.96,1.7848]
[1733766983015,4.28135073,223.99,223.96,1.7848]
[1733766983551,4.28135073,224.01,223.96,1.7848]
[1733766983867,0.83709333,224.04,223.96,1.7848]
[1733766983868,4.28135073,223.99,223.96,1.7848]
[1733766984382,4.28135073,224.01,223.96,1.7848]
[1733766984560,4.28135073,223.99,223.96,1.7848]
[1733766985263,4.28135073,223.99,223.95,6.3259]
[1733766985457,4.28135073,223.99,223.91,9.27865403]
[1733766985665,4.28135073,223.97,223.91,2.3290929]
[1733766985887,4.28135073,223.97,223.91,9.27865403]
[1733766986257,4.28135073,223.97,223.91,17.69791477]
[1733766986475,4.28135073,223.97,223.91,10.74835364]
[1733766986672,4.28135073,223.97,223.91,2.3290929]
[1733766986875,4.28135073,223.95,223.91,2.3290929]
[1733766987988,4.28135073,223.95,223.92,8.41926074]
[1733766988561,4.28135073,223.95,223.91,10.74835364]
[1733766988887,4.28135073,223.95,223.91,2.3290929]
[1733766990757,4.28135073,223.95,223.91,0.5381929]
[1733766990957,0.83736949,223.94,223.91,0.5381929]
[1733766991180,4.28135073,223.95,223.91,0.5381929]
[1733766992194,4.28135073,223.92,223.91,0.5381929]
[1733766993455,5.1189165,223.92,223.91,0.5381929]
[1733766993965,5.1189165,223.92,223.78,0.13075036]
[1733766993966,4.28135073,223.85,223.78,0.13075036]
[1733766994175,4.28135073,223.83,223.78,0.13075036]
[1733766994754,4.28135073,223.81,223.78,0.13075036]
[1733766997272,20.0,223.85,223.78,0.13075036]
[1733766997273,4.28135073,223.85,223.8,8.41926074]
[1733766997464,4.28135073,223.83,223.81,8.41926074]
[1733766997668,4.28135073,223.86,223.81,8.41926074]
[1733766997878,4.28135073,223.84,223.81,8.41926074]
[1733766998082,4.28135073,223.84,223.8,8.41926074]
[1733766998287,4.28135073,223.86,223.78,0.13075036]
[1733766998489,4.28135073,223.86,223.82,8.41926074]
[1733766999356,4.28135073,223.86,223.81,8.41926074]
[1733766999563,4.28135073,223.86,223.8,8.41926074]
[1733766999874,4.28135073,223.83,223.78,0.13075036]
[1733767000188,4.28135073,223.82,223.78,0.13075036]
[1733767000600,0.83775375,223.84,223.78,0.13075036]
[1733767000966,0.8377508,223.89,223.78,0.13075036]
[1733767002107,0.8377508,223.89,223.8,8.41926074]
[1733767002403,0.83758771,223.91,223.82,8.41926074]
[1733767002969,0.83758771,223.91,223.78,0.13075036]
[1733767002970,0.83758771,223.91,223.81,8.41926074]
[1733767003166,0.83758771,223.91,223.78,8.5500111]
[1733767003693,20.0,223.9,223.78,0.13075036]
[1733767003868,0.83775802,223.89,223.78,0.13075036]
[1733767004062,20.0,223.88,223.78,0.13075036]
[1733767004266,0.83780802,223.87,223.78,0.13075036]
[1733767009079,0.83780802,223.87,223.78,8.5500111]
[1733767010080,0.83780802,223.87,223.78,0.13075036]
[1733767013060,7.04200802,223.87,223.78,0.13075036]
[1733767013228,20.0,223.84,223.78,0.13075036]
[1733767013419,0.83787536,223.83,223.78,0.13075036]
[1733767021815,20.83787536,223.83,223.78,0.13075036]
[1733767022545,0.12549,223.8,223.78,0.13075036]
[1733767022841,20.96363388,223.8,223.78,0.13075036]